Cogmind - Beta 15 *** ADVENTURER MODE // 2025.06.06 @ 07:40:28 Player: NED1124 Result: Destroyed by G-47 Trooper with Particle Gun Performance ------------- Evolutions (2) 1000 Regions Visited (4) 800 Robots Destroyed (4) 20 Value Destroyed (109) 109 Prototype IDs (0) 0 Alien Tech Used (0) 0 Bonus (200) 200 TOTAL SCORE: 2129 Bonus ------- Pacifist 200 Cogmind --------- Core Integrity 0/550 Matter 280/300 Energy 100/100 System Corruption 3% Temperature Cool (9) Movement Core (100) Ox1 Location -8/Materials Parts ------- > --- POWER (1) -------- (None) > --- PROPULSION (2) --- (None) > --- UTILITY (4) ------ Machine Analyzer > --- WEAPON (4) ------- Heavy Hammer Heavy Hammer > --- INVENTORY (5) ---- VSS Leg Small Storage Unit Improved Sensor Array Field Recycling Unit (0) Datajack Peak State ------------ > --- POWER ------------ Light Ion Engine > --- PROPULSION ------- Aluminum Leg Aluminum Leg > --- UTILITY ---------- Medium Storage Unit Signal Interpreter Recoil Stabilizer > --- WEAPON ----------- Medium Laser Assault Rifle Light Assault Rifle > --- INVENTORY -------- Light Ion Engine Small Storage Unit Small Storage Unit Medium Storage Unit Improved Sensor Array Improved Sensor Array Field Recycling Unit Field Recycling Unit Pulse Rifle Pulse Rifle [Rating: 13] Favorites ----------- Power Light Ion Engine Engine Light Ion Engine Propulsion Aluminum Leg Leg Aluminum Leg Utility Signal Interpreter Device Recoil Stabilizer Storage Small Storage Unit Processor Signal Interpreter Protection Improved Light Armor Plating Weapon Light Assault Rifle Energy Gun Medium Laser Ballistic Gun Light Assault Rifle Impact Weapon Heavy Hammer Build | -11 -10 -9 -9 -8 ------- Run | Yrd Mat Mat Min Mat Slots Evolved 4 | . . 2 . 2 Power . | . . . . . Propulsion . | . . . . . Utility 2 | . . 1 . 1 Weapon 2 | . . 1 . 1 Parts Attached 19 | 6 1 3 3 6 Power 2 | 1 . . 1 . Engine 2 | 1 . . 1 . Core . | . . . . . Reactor . | . . . . . Propulsion 2 | 2 . . . . Treads . | . . . . . Leg 2 | 2 . . . . Wheel . | . . . . . Hover . | . . . . . Flight . | . . . . . Utility 8 | 1 1 2 2 2 Device 2 | . . 1 1 . Storage 3 | 1 . 1 1 . Processor 2 | . 1 . . 1 Hackware . | . . . . . Protection 1 | . . . . 1 Artifact . | . . . . . Weapon 7 | 2 . 1 . 4 Energy Gun 3 | 1 . . . 2 Energy Cannon . | . . . . . Ballistic Gun 2 | 1 . 1 . . Ballistic Cannon . | . . . . . Launcher . | . . . . . Special Weapon . | . . . . . Impact Weapon 2 | . . . . 2 Slashing Weapon . | . . . . . Piercing Weapon . | . . . . . Special Melee Weapon . | . . . . . Unidentified Prototypes . | . . . . . Parts Lost 6 | . . . 3 3 Power 1 | . . . 1 . Propulsion 1 | . . . 1 . Utility 2 | . . . 1 1 Weapon 2 | . . . . 2 Highest Loss Streak 3 | . . . 3 3 To Critical Strikes . | . . . . . Average Backups 4 | 1 2 6 7 4 Power . | . 1 1 . . Propulsion . | . . . . . Utility 3 | . . 5 5 3 Weapon . | . 1 . 1 . Tool/Special . | . . . . . Unused Backups 9 | . . . 4 5 Power . | . . . . . Propulsion 1 | . . . . 1 Utility 5 | . . . 2 3 Weapon 2 | . . . 2 . Tool/Special 1 | . . . . 1 Average Slot Usage (%) 69 | . 98 89 58 6 Engine 8 | . 14 11 7 . Leg 16 | . 28 22 11 . Device 2 | . . 1 6 . Storage 9 | . 14 11 7 . Processor 8 | . 12 11 6 1 Energy Gun 8 | . 14 11 6 1 Ballistic Gun 13 | . 14 22 12 . Peak Build Rating 13 | 6 7 13 13 8 Average Rating 6 | 5 6 8 7 2 On Entrance 5 | . 6 7 13 . Naked Turns 184 | . . . 121 63 Heaviest Build 19 | 11 11 19 19 6 Greatest Support 20 | 20 20 20 20 3 Greatest Overweight (x) 2 | 1 . . 2 1 Average Overweight (x) . | . . . . . Largest Inventory Capacity 10 | 8 8 10 10 5 Average Capacity 8 | 7 8 9 8 5 Most Carried 10 | 2 5 10 10 5 Average Carried 4 | 1 2 6 7 4 Final Capacity 10 | 8 8 10 5 5 Final Carried 10 | 2 5 10 3 5 Class Distribution -------------------- 62% | Mutant 37% | Gunner Dominant Class ---------------- Mutant | -10/Materials Gunner | -9/Materials Gunner | -9/Mines Mutant | -8/Materials Resources | -11 -10 -9 -9 -8 ----------- Run | Yrd Mat Mat Min Mat Matter Collected 367 | 184 . . 161 22 Remotely . | . . . . . Salvage Created 96 | . . . 11 85 Parts 3 | . . . . 3 Haulers Intercepted . | . . . . . Recyclers Shooed 1 | . . . 1 . Parts Field Recycled . | . . . . . Retrieved Matter . | . . . . . Parts Self-Destructed . | . . . . . Prevented . | . . . . . Kills | -11 -10 -9 -9 -8 ------- Run | Yrd Mat Mat Min Mat Combat Hostiles Destroyed 7 | . . . 4 3 Melee 2 | . . . . 2 Guns 5 | . . . 4 1 Classes Destroyed 4 | . . . 2 2 Swarmer 2 | . . . . 2 Brawler 1 | . . . . 1 Demolisher 1 | . . . 1 . Assembled 3 | . . . 3 . Best Kill Streak 4 | . . . 4 3 Combat Bots Only 4 | . . . 4 3 Max Kills in Single Turn 1 | . . . 1 1 Gunslinging . | . . . . . Exploded . | . . . . . Melee 1 | . . . . 1 Uniques/NPCs Destroyed . | . . . . . Combat | -11 -10 -9 -9 -8 -------- Run | Yrd Mat Mat Min Mat Hostile Shots Fired 188 | . . . 46 142 Missed 62 | . . . 11 51 Hits 126 | . . . 35 91 Melee 5 | . . . 3 2 Projectile 121 | . . . 32 89 AOE 10 | . . . 10 . Critical Strikes 5 | . . . . 5 Damage Taken 1536 | . . . 581 955 Core 785 | . . . 229 556 Absorbed by Shields . | . . . . . Ignored by Resistances 432 | . . . 166 266 Core Remaining (%) 80 | 100 100 . 42 . Volleys Fired 11 | . . . 6 5 Largest 3 | . . . 3 2 Hottest 112 | . . . 90 112 Shots Fired 27 | . . . 18 9 Gun 27 | . . . 18 9 Cannon . | . . . . . Launcher . | . . . . . Special . | . . . . . Kinetic 12 | . . . 12 . Thermal 15 | . . . 6 9 Explosive . | . . . . . Electromagnetic . | . . . . . Robot Hit Streak 6 | . . . 3 6 Robot Miss Streak 2 | . . . 1 2 Penetration Max . | . . . . . Secondary Targets 2 | . . . 2 . Max Gunslinging Chain 1 | . . . 1 . Shots Hit Robots 21 | . . . 13 8 Core Hits 18 | . . . 10 8 Critical Kills . | . . . . . Critical Parts Destroyed . | . . . . . Critical Strikes 1 | . . . . 1 Burn 1 | . . . . 1 Melee Attacks 1 | . . . . 1 Impact 1 | . . . . 1 Slashing . | . . . . . Piercing . | . . . . . Sneak Attacks . | . . . . . Combat Hostiles . | . . . . . Follow-up Attacks . | . . . . . Damage Inflicted 402 | . . . 154 248 Guns 239 | . . . 138 101 Cannons . | . . . . . Explosions . | . . . . . Melee 20 | . . . . 20 Ramming 143 | . . . 16 127 Kinetic 114 | . . . 114 . Thermal 125 | . . . 24 101 Explosive . | . . . . . Electromagnetic . | . . . . . Impact 20 | . . . . 20 Slashing . | . . . . . Piercing . | . . . . . Highest Corruption 3 | . . . 3 3 Average Corruption 2 | . . . 3 2 Corruption Purged . | . . . . . Corruption Blocked . | . . . . . Effects 5 | . . . 3 2 Message Errors 1 | . . . . 1 Matter Fused 3 | . . . 2 1 Heat Flow Errors 1 | . . . 1 . Overload Shots . | . . . . . Overflow Damage . | . . . . . Projectiles . | . . . . . Explosions . | . . . . . Melee . | . . . . . Knockbacks 1 | . . . 1 . Impact 1 | . . . 1 . Kinetic . | . . . . . Secondary . | . . . . . Self-Inflicted Damage 66 | . . . 8 58 Shots . | . . . . . Rammed 34 | . . . 3 31 Targets Rammed 34 | . . . 3 31 Kicked . | . . . . . Crushed . | . . . . . Highest Temperature 258 | . . . 258 137 Average Temperature 63 | . . . 62 65 Received Heat Transfer 709 | . . . 340 369 Siege Activations . | . . . . . Martial Activations . | . . . . . Shielding Activations . | . . . . . Robots Disrupted . | . . . . . Combat Hostiles . | . . . . . Robots Corrupted . | . . . . . Combat Hostiles . | . . . . . Parts Fried . | . . . . . Impact Corruptions . | . . . . . Robots Melted . | . . . . . Combat Hostiles . | . . . . . Parts Melted 1 | . . . . 1 Heat Transferred 407 | . . . 74 333 Parts Sabotaged . | . . . . . Parts Stolen . | . . . . . Parts Stripped . | . . . . . Power Chain Reactions . | . . . . . Alert | -11 -10 -9 -9 -8 ------- Run | Yrd Mat Mat Min Mat Maximum Alert Level . | . . . . . Low Security (%) 100 | 100 100 100 100 100 Level 1 . | . . . . . Level 2 . | . . . . . Level 3 . | . . . . . Level 4 . | . . . . . Level 5 . | . . . . . High Security . | . . . . . Max Security . | . . . . . Peak Influence 40 | . . . 20 40 Initial . | . . . . . Average 1 | . . . . 9 Influence Increases 90 | . . . 20 70 Destroy 0b10 Robot/C 80 | . . . 20 60 Destroy Leader 10 | . . . . 10 Influence Decreases 90 | . . . 20 70 Time Decay 50 | . . . 10 40 Lost Part 40 | . . . 10 30 Squads Dispatched . | . . . . . Investigation . | . . . . . Extermination . | . . . . . Reinforcement . | . . . . . Assault . | . . . . . Garrison . | . . . . . Intercept . | . . . . . Searches Triggered . | . . . . . Construction Impeded . | . . . . . Haulers Reinforced . | . . . . . Active Scanning Responses . | . . . . . Cargo Convoy Interrupts . | . . . . . Stealth | -11 -10 -9 -9 -8 --------- Run | Yrd Mat Mat Min Mat Distress Signals 1 | . 1 . . . Communications Jammed . | . . . . . Distress Signals . | . . . . . Times Spotted 42 | . 5 . 26 11 Peak Tracking Total 13 | . 4 . 13 9 Tactical Retreats 2 | . . . 2 . Traps | -11 -10 -9 -9 -8 ------- Run | Yrd Mat Mat Min Mat Traps Triggered . | . . . . . Indirectly . | . . . . . Trap Hack Attempts . | . . . . . Triggered . | . . . . . Disarmed . | . . . . . Reprogrammed . | . . . . . Reused . | . . . . . Traps Extracted . | . . . . . Installed . | . . . . . Triggered . | . . . . . Machines | -11 -10 -9 -9 -8 ---------- Run | Yrd Mat Mat Min Mat Machines Disabled . | . . . . . Max in Single Turn . | . . . . . Machines Repaired . | . . . . . Machines Dismantled . | . . . . . Machines Sabotaged . | . . . . . Overloaded Fab Kills . | . . . . . Hacking | -11 -10 -9 -9 -8 --------- Run | Yrd Mat Mat Min Mat Machines Accessed . | . . . . . Terminals . | . . . . . Fabricators . | . . . . . Repair Stations . | . . . . . Recycling Units . | . . . . . Scanalyzers . | . . . . . Garrison Access . | . . . . . Total Hacks . | . . . . . Successful . | . . . . . Failed . | . . . . . Catastrophic . | . . . . . Database Lockouts . | . . . . . Manual . | . . . . . Terminals . | . . . . . Fabricators . | . . . . . Repair Stations . | . . . . . Recycling Units . | . . . . . Scanalyzers . | . . . . . Garrison Access . | . . . . . Terminal Hacks . | . . . . . Fabricator Hacks . | . . . . . Repair Station Hacks . | . . . . . Recycling Unit Hacks . | . . . . . Scanalyzer . | . . . . . Garrison Access Hacks . | . . . . . Unauthorized Hacks . | . . . . . Terminals . | . . . . . Fabricators . | . . . . . Repair Stations . | . . . . . Recycling Units . | . . . . . Scanalyzers . | . . . . . Garrison Access . | . . . . . Data Cores Recovered . | . . . . . Used . | . . . . . Hacking Detections . | . . . . . Full Trace Events . | . . . . . Feedback Events . | . . . . . Feedback Blocked . | . . . . . Robot Schematics Acquired . | . . . . . Robots Built . | . . . . . Authchips . | . . . . . Time . | . . . . . Total Robot Build Rating . | . . . . . Part Schematics Acquired . | . . . . . Parts Built . | . . . . . Authchips . | . . . . . Time . | . . . . . Total Part Build Rating . | . . . . . Parts Repaired . | . . . . . Time . | . . . . . Parts Recycled . | . . . . . Recycled Matter . | . . . . . Retrieved Matter . | . . . . . Retrieved Components . | . . . . . Parts Scanalyzed . | . . . . . Part Schematics Acquired . | . . . . . Parts Damaged . | . . . . . Bothacking | -11 -10 -9 -9 -8 ------------ Run | Yrd Mat Mat Min Mat Used RIF Installer . | . . . . . Robots Hacked . | . . . . . Non-combat . | . . . . . Combat . | . . . . . Robot Hacks Applied . | . . . . . Relay Couplers Released . | . . . . . Fabnet Peak Effective % . | . . . . . Robots Rewired . | . . . . . Allies Hacked . | . . . . . Hacks Repelled . | . . . . . Allies | -11 -10 -9 -9 -8 -------- Run | Yrd Mat Mat Min Mat Total Allies . | . . . . . Largest Group . | . . . . . Highest-Rated Group . | . . . . . Highest-Rated Ally . | . . . . . Total Orders . | . . . . . Ally Attacks . | . . . . . Total Damage . | . . . . . Kills . | . . . . . Allies Corrupted . | . . . . . Allies Melted . | . . . . . Intel | -11 -10 -9 -9 -8 ------- Run | Yrd Mat Mat Min Mat Active Infowar (turns) 51 | . . . 36 15 Sensors 36 | . . . 36 . Machine Analysis 15 | . . . . 15 Robot Analysis Total . | . . . . . Derelict Logs Recovered 1 | . . . 1 . Drone Launches . | . . . . . Drone Recoveries . | . . . . . Exploration | -11 -10 -9 -9 -8 ------------- Run | Yrd Mat Mat Min Mat Turns Passed 1192 | 130 307 240 363 152 Spaces Moved 1139 | 99 253 192 416 179 Core 449 | 3 . . 267 179 Treads . | . . . . . Legs 690 | 96 253 192 149 . Wheels . | . . . . . Hover . | . . . . . Flight . | . . . . . Fastest Speed 50 | 50 120 120 50 50 Average Speed 95 | 121 120 120 81 51 Slowest Speed 190 | 190 120 120 190 100 Overloaded Moves . | . . . . . Propulsion Burnouts . | . . . . . Robots Hopped . | . . . . . Potential Cave-ins . | . . . . . Cave-ins Triggered . | . . . . . Exploration Rate (%) 25 | 7 22 15 70 11 Regions Visited 4 Branch Regions 1 Pre-discovered Areas . | . . . . . Known Exits Taken 2 | . 1 1 . . Unknown Exits Taken 2 | 1 . . 1 . Scrap Searched 2 | . . . 2 . Spaces Dug . | . . . . . Terrain Destroyed . | . . . . . Melee . | . . . . . Projectile . | . . . . . AOE . | . . . . . Terrain Rammed . | . . . . . Walls Destroyed . | . . . . . Machines Disabled . | . . . . . Actions | -11 -10 -9 -9 -8 --------- Run | Yrd Mat Mat Min Mat Total 1213 | 106 256 200 427 224 Wait . | . . . . . Move 1135 | 98 252 191 415 179 Hop . | . . . . . Pick Up 13 | 2 3 6 . 2 Fast Attach 15 | 6 1 1 1 6 Attach 3 | . . 1 2 . Detach . | . . . . . Swap 1 | . . 1 . . Drop . | . . . . . Fire 11 | . . . 6 5 Melee 1 | . . . . 1 Ram 34 | . . . 3 31 Kick . | . . . . . Crush . | . . . . . Escape Stasis . | . . . . . Rewire . | . . . . . Trap . | . . . . . Miscellaneous . | . . . . . Route ------- -11/Scrapyard -10/Materials -9/Materials -9/Mines -8/Materials History --------- Turn | Location | Event 32 | -11/Scrapyard | Discovered new exit (range 14) 131 | -11/Scrapyard | Entered Materials 317 | -10/Materials | Build established: Mutant 381 | -10/Materials | Discovered new exit (range 16) 436 | -10/Materials | Identified exit to Materials 438 | -10/Materials | Entered another Materials area 438 | -9/Materials | Evolved 2 slots: Utility x1, Weapon x1 625 | -9/Materials | Discovered new exit (range 7) 666 | -9/Materials | Identified exit to Mines 678 | -9/Materials | Entered Mines 701 | -9/Mines | Learned Materials trap positions 703 | -9/Mines | Met a Derelict bent on vengeance 733 | -9/Mines | Build established: Gunner 822 | -9/Mines | Assembled infested the area 877 | -9/Mines | Released all parts (6) 904 | -9/Mines | Lost 3 parts (1p1n1u) 1023 | -9/Mines | Core integrity fell below 50% 1032 | -9/Mines | Released all parts (3) 1038 | -9/Mines | Discovered new exit (range 6) 1041 | -9/Mines | Entered Materials 1041 | -8/Materials | Evolved 2 slots: Utility x1, Weapon x1 1042 | -8/Materials | Loaded intel: 10 trap records 1148 | -8/Materials | Core integrity fell below 50% 1163 | -8/Materials | Lost 3 parts (1u2w) 1174 | -8/Materials | Core integrity fell below 20% 1193 | -8/Materials | Destroyed by G-47 Trooper with Particle Gun Last Messages --------------- 01129_ Hammer melted. 01129_ B-36 Bruiser destroyed. 01130_ Acquired 19 matter. 01132_ Beam Rifle destroyed. 01133_ Slammed into G-47 Trooper. 01136_ K-01 Serf collects debris. 01146_ Acquired VSS Leg. 01147_ Critical hit (Burn: +37). 01148_ Slammed into Y-45 Defender. 01161_ Acquired Machine Analyzer. 01162_ 55P#HUY%/TWH75UOCL3H 01164_ Slammed into Y-45 Defender. 01165_ Critical hit (Burn: +37). 01167_ Acquired 2 matter. 01168_ Acquired 1 matter. 01174_ Slammed into Y-45 Defender. 01176_ Destabilizing: System interference. 01176_ Machine Analyzer temporarily disabled. 01181_ Acquired Hvy. Hammer. 01186_ S-10 Pest destroyed. Map ----- +----------------------------------------------------+ | | | | | | | | | | | | | | | | | | | | | | | | | | | | | #########?????###????????????????????????????????? | | # """" #????? ????????????????????????????????? | | # """" #????? ????????????????????????????????? | | # """" #????? ????????????????????????????????? | | # #????? ############????????????????????? | | # #????##+## ^ ^ #????????????????????? | | ####+#########% #^ [/^ !#????????????????????? | | %%!% # ^^/ #######??????????????? | | ############## # [/ # #??????????????? | | ???????######## %g# #??????????????? | | ???????# *%=# % [=Y# """ #??????????????? | | ???????# """" +% % @g%+ "R %#??????????????? | | ???????# """" # ##+##+#####Y# """%#??????????????? | | ???????# """" # # %=% #??#%# ""%##?????????????? | | ???????# # # "%= #??# / %%% #?????????????? | | ???????# ! # # T %[ ####+###+####?????????????? | | ???????######## # " [ # % #???????????????? | | ??????????????# # [ # #???????????????? | | ??????????????# # # / #???????????????? | | ??????????????# ######## #???????????????? | | ??????????????? ???????###########???????????????? | | ???????????????#?????????????????????????????????? | | ?????????????????????????????????????????????????" | | ?????????????????????????????????????????????????" | | ?????????????????????????????????????????????????" | | ?????????????????????????????????????????????????? | | ?????????????????????????????????????????????????? | | ?????????????????????????????????????????????????? | | ?????????????????????????????????????????????????? | | ?????????????????????????????????????????????????? | | ?????????????????????????????????????????????????? | | ?????????????????????????????????????????????????? | | ?????????????????????????????????????????????????? | | ?????????????????????????????????????????????????? | | ?????????????????????????????????????????????????? | | ?????????????????????????????????????????????????? | +----------------------------------------------------+ Best States ------------- Heat Dissipation 31 Energy Generation 10 Energy Capacity 125 Matter Stores 300 Matter Capacity 300 Sight Range 16 Robot Scan Range 15 Terrain Scan Density 10 Armor Coverage 150 Resistance: KI 20 Resistance: TH 20 Resistance: EX 20 Resistance: EM 20 Resistance: I 20 Resistance: S 20 Resistance: P 20 Evasion (%) 55 Recoil Reduction 4 Offensive Hacking 10 Item Schematics ----------------- None Robot Schematics ------------------ None Fabricated ------------ Nothing Repaired ---------- Nothing Alien Tech Used ----------------- None Achievements -------------- None Challenges ------------ None Game ------ Seed AlertGuidanceBoomstick Manual? 0 Play Time 00:15:38 Cumulative 39.0 hours Start 2025.06.06 @ 07:24:54 End 2025.06.06 @ 07:40:28 Sessions 1 Manual Loads 0 Difficulty Adventurer Special Mode None Game No. 81 Rogue 0 Adventurer 20 Explorer 61 Win Type - Total 0 Types 0/0/0/0/0/0/0/0/0/0 Lore% 4 Gallery% 23 Achievement% 24 Wizard Run 0 Options --------- Layout 0 ASCII 0 Keyboard 1 Movement Arrows Keybinds 0 Fullscreen 1 Font 18/SmallcapsGlow Map View 76x50 Zoom Use 3% Tactical HUD 1 Map Filters NONE Filters NONE Steam 1 RUN: e763cb23-16cf-42e8-a90f-c8396498a30c